fUSD/lending_fUSD_20250219
["ID","MTS","AMOUNT","RATE_DAILY","PERIOD"]
[353604679,1739956992760,-909.24,0.00014027,2]
[353604680,1739956992789,-500.0,0.00014027,2]
[353604681,1739956992819,-500.0,0.00014027,2]
[353604682,1739956992851,-500.0,0.00014027,2]
[353604683,1739956992880,-500.0,0.00014027,2]
[353604684,1739956992913,-500.0,0.00014027,2]
[353604685,1739956992945,-500.0,0.00014027,2]
[353604686,1739956992974,-500.0,0.00014027,2]
[353604687,1739956993006,-232.38,0.00014027,2]
[353604688,1739956993037,-1252.15,0.00014027,2]
[353604689,1739956993068,-500.0,0.00014027,2]
[353604690,1739956993099,-427.54,0.00014027,2]
[353604691,1739956993128,-500.0,0.00014027,2]
[353604692,1739956993159,-204.97,0.00014027,2]
[353604693,1739956993187,-500.0,0.00014027,2]
[353604694,1739956993217,-724.82,0.00014027,2]
[353604695,1739956993247,-604.92,0.00014027,2]
[353604696,1739956993277,-500.0,0.00014027,2]
[353604697,1739956993308,-855.46,0.00014027,2]
[353604698,1739956993340,-155.81498,0.00014027,2]
[353604699,1739956993370,-500.0,0.00014027,2]
[353604700,1739956993400,-500.0,0.00014027,2]
[353604701,1739956993429,-736.01,0.00014027,2]
[353604702,1739956993458,-629.0,0.00014027,2]
[353604703,1739956993487,-179.00379702,0.00014027,2]
[353604704,1739956993516,-1283.84,0.00014027,2]
[353604705,1739956993546,-500.0,0.00014027,2]
[353604706,1739956993575,-500.0,0.00014027,2]
[353604707,1739956993603,-500.0,0.00014027,2]
[353604708,1739956993633,-500.0,0.00014027,2]
[353604709,1739956993661,-745.89,0.00014027,2]
[353604710,1739956993692,-1926.5,0.00014027,2]
[353604711,1739956993721,-500.0,0.00014027,2]
[353604712,1739956993752,-500.0,0.00014027,2]
[353604713,1739956993782,-1055.67,0.00014027,2]
[353604714,1739956993812,-216.24,0.00014027,2]
[353604715,1739956993846,-160.52,0.00014027,2]
[353604716,1739956993877,-627.81,0.00014027,2]
[353604717,1739956993911,-500.0,0.00014027,2]
[353604718,1739956993943,-500.0,0.00014027,2]
[353604719,1739956993974,-500.0,0.00014027,2]
[353604720,1739956994004,-776.57,0.00014027,2]
[353604721,1739956994034,-172.72,0.00014027,2]
[353604722,1739956994067,-545.62,0.00014027,2]
[353604723,1739956994096,-445.82,0.00014027,2]
[353604724,1739956994128,-500.0,0.00014027,2]
[353604725,1739956994157,-500.0,0.00014027,2]
[353604726,1739956994187,-547.75,0.00014027,2]
[353604727,1739956994217,-733.08,0.00014027,2]
[353604728,1739956994247,-500.0,0.00014027,2]
[353604729,1739956994276,-519.56,0.00014027,2]
[353604730,1739956994306,-529.59,0.00014027,2]
[353604731,1739956994335,-4362.54,0.00014027,2]
[353604732,1739956994364,-388.5,0.00014027,2]
[353604733,1739956994395,-500.0,0.00014027,2]
[353604734,1739956994424,-500.0,0.00014027,2]
[353604735,1739956994452,-500.0,0.00014027,2]
[353604736,1739956994480,-500.0,0.00014027,2]
[353604737,1739956994509,-500.0,0.00014027,2]
[353604738,1739956994537,-691.67,0.00014027,2]
[353604739,1739956994567,-580.48,0.00014027,2]
[353604740,1739956994594,-1333.98,0.00014027,2]
[353604741,1739956994626,-2090.9,0.00014027,2]
[353604742,1739956994653,-823.1,0.00014027,2]
[353604743,1739956994680,-552.5,0.00014027,2]
[353604744,1739956994707,-733.25,0.00014027,2]
[353604745,1739956994735,-1331.05,0.00014027,2]
[353604746,1739956994763,-500.0,0.00014027,2]
[353604747,1739956994793,-500.0,0.00014027,2]
[353604748,1739956994821,-2789.70716225,0.00014073,2]
[353604749,1739956994854,-153.40119026,0.00014091,2]
[353604750,1739956994885,-166.1,0.00014101,2]
[353604751,1739956994916,-933.0,0.00014109,2]
[353604752,1739956994945,-472.7020275,0.00014109,2]
[353604753,1739956994976,-500.0,0.00014109,2]
[353604754,1739956995005,-500.0,0.00014109,2]
[353604755,1739956995033,-543.01,0.00014109,2]
[353604756,1739956995061,-634.82,0.00014109,2]
[353604757,1739956995089,-275.85723107,0.00014109,2]
[353604758,1739956995118,-500.0,0.00014109,2]
[353604759,1739956995146,-500.0,0.00014109,2]
[353604760,1739956995174,-541.04,0.00014109,2]
[353604761,1739956995202,-500.0,0.00014109,2]
[353604762,1739956995230,-725.34,0.00014109,2]
[353604763,1739956995257,-778.48,0.00014109,2]
[353604764,1739956995284,-500.0,0.00014109,2]
[353604765,1739956995312,-500.0,0.00014109,2]
[353604766,1739956995339,-633.81,0.00014109,2]
[353604767,1739956995366,-500.0,0.00014109,2]
[353604768,1739956995395,-562.62,0.00014109,2]
[353604769,1739956995423,-844.44,0.00014109,2]
[353604770,1739956995451,-500.0,0.00014109,2]
[353604771,1739956995479,-500.0,0.00014109,2]
[353604772,1739956995507,-500.0,0.00014109,2]
[353604773,1739956995535,-500.0,0.00014109,2]
[353604774,1739956995562,-500.0,0.00014109,2]
[353604775,1739956995591,-722.42,0.00014109,2]
[353604776,1739956995619,-510.18,0.00014109,2]
[353604777,1739956995649,-500.0,0.00014109,2]
[353604778,1739956995679,-650.55,0.00014109,2]
[353604779,1739956995706,-500.0,0.00014109,2]
[353604780,1739956995733,-500.0,0.00014109,2]
[353604781,1739956995760,-500.0,0.00014109,2]
[353604782,1739956996007,-1055.45,0.00014109,2]
[353604783,1739956996072,-500.0,0.00014109,2]
[353604784,1739956996103,-500.0,0.00014109,2]
[353604785,1739956996133,-500.0,0.00014109,2]
[353604786,1739956996163,-691.51,0.00014109,2]
[353604787,1739956996193,-909.51,0.00014109,2]
[353604788,1739956996222,-500.0,0.00014109,2]
[353604789,1739956996249,-500.0,0.00014109,2]
[353604790,1739956996276,-667.83,0.00014109,2]
[353604791,1739956996307,-500.0,0.00014109,2]
[353604792,1739956996335,-531.54,0.00014109,2]
[353604793,1739956996362,-647.18,0.00014109,2]
[353604794,1739956996392,-500.0,0.00014109,2]
[353604795,1739956996418,-500.0,0.00014109,2]
[353604796,1739956996447,-500.0,0.00014109,2]
[353604797,1739956996476,-930.4,0.00014109,2]
[353604798,1739956996503,-500.0,0.00014109,2]
[353604799,1739956996531,-625.34,0.00014109,2]
[353604800,1739956996559,-209.47842405,0.00014109,2]
[353604801,1739956996585,-500.0,0.00014109,2]
[353604802,1739956996612,-165.99506362,0.00014109,2]
[353604803,1739956996641,-500.0,0.00014109,2]
[353604804,1739956996669,-515.28,0.00014109,2]
[353604805,1739956996701,-500.0,0.00014109,2]
[353604806,1739956996730,-500.0,0.00014109,2]
[353604807,1739956996758,-551.52,0.00014109,2]
[353604808,1739956996790,-500.0,0.00014109,2]
[353604809,1739956996817,-500.0,0.00014109,2]
[353604810,1739956996846,-770.16,0.00014109,2]
[353604811,1739956996874,-500.0,0.00014109,2]
[353604812,1739956996903,-500.0,0.00014109,2]
[353604813,1739956996935,-500.0,0.00014109,2]
[353604814,1739956996964,-500.0,0.00014109,2]
[353604815,1739956996995,-500.0,0.00014109,2]
[353604816,1739956997025,-500.0,0.00014109,2]
[353604817,1739956997055,-500.0,0.00014109,2]
[353604818,1739956997087,-500.0,0.00014109,2]
[353604819,1739956997116,-512.49,0.00014109,2]
[353604820,1739956997147,-533.08,0.00014109,2]
[353604821,1739956997176,-628.45,0.00014109,2]
[353604822,1739956997205,-743.05,0.00014109,2]
[353604823,1739956997234,-500.0,0.00014109,2]
[353604824,1739956997262,-1540.98,0.00014109,2]
[353604825,1739956997289,-545.22,0.00014109,2]
[353604826,1739956997316,-807.24,0.00014109,2]
[353604827,1739956997344,-514.11,0.00014109,2]
[353604828,1739956997375,-500.0,0.00014109,2]
[353604829,1739956997403,-819.39,0.00014109,2]
[353604830,1739956997429,-500.0,0.00014109,2]
[353604831,1739956997457,-572.21,0.00014109,2]
[353604832,1739956997484,-500.0,0.00014109,2]
[353604833,1739956997512,-649.94,0.00014109,2]
[353604834,1739956997541,-500.0,0.00014109,2]
[353604835,1739956997569,-500.0,0.00014109,2]
[353604836,1739956997598,-498.28710258,0.00014109,2]
[353604837,1739956997626,-500.0,0.00014109,2]
[353604838,1739956997653,-500.0,0.00014109,2]
[353604839,1739956997681,-1211.58,0.00014109,2]
[353604840,1739956997709,-186.644659,0.00014109,2]
[353604841,1739956997737,-500.0,0.00014109,2]
[353604842,1739956997779,-500.0,0.00014109,2]
[353604843,1739956997810,-1135.36,0.00014109,2]
[353604844,1739956997841,-500.0,0.00014109,2]
[353604845,1739956997871,-722.48,0.00014109,2]
[353604846,1739956997906,-500.0,0.00014109,2]
[353604847,1739956997937,-1272.14,0.00014109,2]
[353604848,1739956997965,-500.0,0.00014109,2]
[353604849,1739956997994,-500.0,0.00014109,2]
[353604850,1739956998023,-500.0,0.00014109,2]
[353604851,1739956998054,-712.89,0.00014109,2]
[353604852,1739956998083,-500.0,0.00014109,2]
[353604853,1739956998112,-500.0,0.00014109,2]
[353604854,1739956998143,-500.0,0.00014109,2]
[353604855,1739956998172,-500.0,0.00014109,2]
[353604856,1739956998201,-500.0,0.00014109,2]
[353604857,1739956998232,-862.66,0.00014109,2]
[353604858,1739956998264,-1233.72,0.00014109,2]
[353604859,1739956998298,-740.17,0.00014109,2]
[353604860,1739956998332,-758.66,0.00014109,2]
[353604861,1739956998365,-500.0,0.00014109,2]
[353604862,1739956998401,-601.16,0.00014109,2]
[353604863,1739956998431,-500.0,0.00014109,2]
[353604864,1739956998464,-500.0,0.00014109,2]
[353604865,1739956998494,-689.44,0.00014109,2]
[353604866,1739956998524,-593.48,0.00014109,2]
[353604867,1739956998555,-500.0,0.00014109,2]
[353604868,1739956998587,-500.0,0.00014109,2]
[353604869,1739956998618,-774.93,0.00014109,2]
[353604870,1739956998648,-500.0,0.00014109,2]
[353604871,1739956998679,-518.34343077,0.00014109,2]
[353604872,1739956998709,-529.64788718,0.00014109,2]
[353604873,1739956998739,-1397.033156,0.00014109,2]
[353604874,1739956998769,-500.0,0.00014109,2]
[353604875,1739956998798,-1325.26,0.00014109,2]
[353604876,1739956998827,-500.0,0.00014109,2]
[353604877,1739956998861,-500.0,0.00014109,2]
[353604878,1739956998894,-750.16,0.00014109,2]
[353604879,1739956998929,-500.0,0.00014109,2]
[353604880,1739956998964,-1394.43,0.00014109,2]
[353604881,1739956998998,-500.0,0.00014109,2]
[353604882,1739956999030,-500.0,0.00014109,2]
[353604883,1739956999061,-500.0,0.00014109,2]
[353604884,1739956999092,-638.51,0.00014109,2]
[353604885,1739956999122,-500.0,0.00014109,2]
[353604886,1739956999154,-500.0,0.00014109,2]
[353604887,1739956999183,-532.46366584,0.00014109,2]
[353604888,1739956999213,-500.0,0.00014109,2]
[353604889,1739956999243,-500.0,0.00014109,2]
[353604890,1739956999273,-916.97,0.00014109,2]
[353604891,1739956999305,-500.0,0.00014109,2]
[353604892,1739956999338,-500.0,0.00014109,2]
[353604893,1739956999369,-571.77,0.00014109,2]
[353604894,1739956999399,-500.0,0.00014109,2]
[353604895,1739956999429,-535.59,0.00014109,2]
[353604896,1739956999460,-543.64,0.00014109,2]
[353604897,1739956999489,-1263.66,0.00014109,2]
[353604898,1739956999518,-500.0,0.00014109,2]
[353604899,1739956999546,-646.22,0.00014109,2]
[353604900,1739956999576,-865.23,0.00014109,2]
[353604901,1739956999606,-1825.346312,0.00014109,2]
[353604902,1739956999635,-592.33,0.00014109,2]
[353604903,1739956999664,-500.0,0.00014109,2]
[353604904,1739956999692,-646.68,0.00014109,2]
[353604905,1739956999720,-597.97,0.00014109,2]
[353604906,1739956999750,-500.0,0.00014109,2]
[353604907,1739956999780,-694.2,0.00014109,2]
[353604908,1739956999808,-500.0,0.00014109,2]
[353604909,1739956999840,-500.0,0.00014109,2]
[353604910,1739956999869,-1174.15,0.00014109,2]
[353604911,1739956999899,-500.0,0.00014109,2]
[353604912,1739956999930,-878.0,0.00014109,2]
[353604913,1739956999959,-500.0,0.00014109,2]
[353604914,1739956999989,-825.52,0.00014109,2]
[353604915,1739957000017,-500.0,0.00014109,2]
[353604916,1739957000044,-500.0,0.00014109,2]
[353604917,1739957000071,-151.0,0.00014109,2]
[353604918,1739957000098,-151.0,0.00014109,2]
[353604919,1739957000125,-500.0,0.00014109,2]
[353604920,1739957000153,-500.0,0.00014109,2]
[353604921,1739957000180,-516.38,0.00014109,2]
[353604922,1739957000206,-500.0,0.00014109,2]
[353604923,1739957000232,-500.0,0.00014109,2]
[353604924,1739957000259,-1264.71,0.00014109,2]
[353604925,1739957000284,-906.18,0.00014109,2]
[353604926,1739957000312,-500.0,0.00014109,2]
[353604927,1739957000338,-500.0,0.00014109,2]
[353604928,1739957000365,-500.0,0.00014109,2]
[353604929,1739957000392,-565.96,0.00014109,2]
[353604930,1739957000419,-500.0,0.00014109,2]
[353604931,1739957000446,-988.21,0.00014109,2]
[353604932,1739957000702,-500.0,0.00014109,2]
[353604933,1739957000731,-1121.54,0.00014109,2]
[353604934,1739957000760,-307.10947683,0.00014109,2]
[353604935,1739957000788,-500.52,0.00014109,2]
[353604936,1739957000817,-500.0,0.00014109,2]
[353604937,1739957000847,-500.0,0.00014109,2]
[353604938,1739957000875,-500.0,0.00014109,2]
[353604939,1739957000906,-1126.66,0.00014109,2]
[353604940,1739957000935,-520.9,0.00014109,2]
[353604941,1739957000964,-628.69,0.00014109,2]
[353604942,1739957000993,-500.0,0.00014109,2]
[353604943,1739957001023,-500.0,0.00014109,2]
[353604944,1739957001052,-500.0,0.00014109,2]
[353604945,1739957001083,-500.0,0.00014109,2]
[353604946,1739957001116,-500.0,0.00014109,2]
[353604947,1739957001145,-883.27,0.00014109,2]
[353604948,1739957001173,-777.31,0.00014109,2]
[353604949,1739957001202,-500.0,0.00014109,2]
[353604950,1739957001230,-500.0,0.00014109,2]
[353604951,1739957001258,-601.15,0.00014109,2]
[353604952,1739957001286,-539.74466499,0.00014109,2]
[353604953,1739957001313,-500.0,0.00014109,2]
[353604954,1739957001340,-500.0,0.00014109,2]
[353604955,1739957001367,-653.11,0.00014109,2]
[353604956,1739957001395,-500.0,0.00014109,2]
[353604957,1739957001424,-500.0,0.00014109,2]
[353604958,1739957001452,-777.33,0.00014109,2]
[353604959,1739957001481,-500.0,0.00014109,2]
[353604960,1739957001508,-523.08,0.00014109,2]
[353604961,1739957001535,-232.36159158,0.00014109,2]
[353604962,1739957001563,-1044.61,0.00014109,2]
[353604963,1739957001591,-582.76481058,0.00014109,2]
[353604964,1739957001619,-500.0,0.00014109,2]
[353604965,1739957001648,-712.57,0.00014109,2]
[353604966,1739957001677,-500.0,0.00014109,2]
[353604967,1739957001704,-500.0,0.00014109,2]
[353604968,1739957001733,-540.46,0.00014109,2]
[353604969,1739957001762,-777.07,0.00014109,2]
[353604970,1739957001790,-687.05,0.00014109,2]
[353604971,1739957001818,-500.0,0.00014109,2]
[353604972,1739957001847,-500.0,0.00014109,2]
[353604973,1739957001877,-879.81,0.00014109,2]
[353604974,1739957001907,-500.0,0.00014109,2]
[353604975,1739957001938,-525.83,0.00014109,2]
[353604976,1739957001967,-625.39,0.00014109,2]
[353604977,1739957001996,-888.05,0.00014109,2]
[353604978,1739957002026,-787.18,0.00014109,2]
[353604979,1739957002055,-500.0,0.00014109,2]
[353604980,1739957002084,-500.0,0.00014109,2]
[353604981,1739957002111,-781.66,0.00014109,2]
[353604982,1739957002142,-532.61,0.00014109,2]
[353604983,1739957002170,-596.76,0.00014109,2]
[353604984,1739957002199,-536.22,0.00014109,2]
[353604985,1739957002229,-500.0,0.00014109,2]
[353604986,1739957002258,-500.0,0.00014109,2]
[353604987,1739957002286,-500.0,0.00014109,2]
[353604988,1739957002315,-914.58,0.00014109,2]
[353604989,1739957002345,-500.0,0.00014109,2]
[353604990,1739957002372,-408.13355094,0.00014109,2]
[353604991,1739957002403,-500.0,0.00014109,2]
[353604992,1739957002434,-500.0,0.00014109,2]
[353604993,1739957002463,-500.0,0.00014109,2]
[353604994,1739957002491,-500.0,0.00014109,2]
[353604995,1739957002519,-657.0,0.00014109,2]
[353604996,1739957002547,-500.0,0.00014109,2]
[353604997,1739957002574,-727.68,0.00014109,2]
[353604998,1739957002602,-1554.06,0.00014109,2]
[353604999,1739957002630,-594.44,0.00014109,2]
[353605000,1739957002660,-500.0,0.00014109,2]
[353605001,1739957002690,-500.0,0.00014109,2]
[353605002,1739957002718,-500.0,0.00014109,2]
[353605003,1739957002751,-1286.14,0.00014109,2]
[353605004,1739957002781,-539.19,0.00014109,2]
[353605005,1739957002812,-731.14,0.00014109,2]
[353605006,1739957002841,-500.0,0.00014109,2]
[353605007,1739957002871,-523.74,0.00014109,2]
[353605008,1739957002903,-1494.76,0.00014109,2]
[353605009,1739957002934,-500.0,0.00014109,2]
[353605010,1739957002964,-500.0,0.00014109,2]
[353605011,1739957002992,-423.54692767,0.00014109,2]
[353605012,1739957003021,-500.0,0.00014109,2]
[353605013,1739957003051,-656.29,0.00014109,2]
[353605014,1739957003079,-500.0,0.00014109,2]
[353605015,1739957003107,-500.0,0.00014109,2]
[353605016,1739957003138,-1380.28,0.00014109,2]
[353605017,1739957003166,-500.0,0.00014109,2]
[353605018,1739957003196,-500.0,0.00014109,2]
[353605019,1739957003225,-500.0,0.00014109,2]
[353605020,1739957003258,-416.08504316,0.00014109,2]
[353605021,1739957003288,-500.0,0.00014109,2]
[353605022,1739957003319,-500.0,0.00014109,2]
[353605023,1739957003348,-1469.68,0.00014109,2]
[353605024,1739957003378,-500.0,0.00014109,2]
[353605025,1739957003408,-500.0,0.00014109,2]
[353605026,1739957003438,-500.0,0.00014109,2]
[353605027,1739957003468,-500.0,0.00014109,2]
[353605028,1739957003499,-1629.48,0.00014109,2]
[353605029,1739957003529,-500.0,0.00014109,2]
[353605030,1739957003559,-506.69,0.00014109,2]
[353605031,1739957003587,-500.0,0.00014109,2]
[353605032,1739957003615,-1643.27,0.00014109,2]
[353605033,1739957003644,-543.61120191,0.00014109,2]
[353605034,1739957003674,-500.0,0.00014109,2]
[353605035,1739957003703,-500.0,0.00014109,2]
[353605036,1739957003732,-500.07,0.00014109,2]
[353605037,1739957003762,-1374.04,0.00014109,2]
[353605038,1739957003790,-500.0,0.00014109,2]
[353605039,1739957003819,-500.0,0.00014109,2]
[353605040,1739957003850,-500.0,0.00014109,2]
[353605041,1739957003878,-500.0,0.00014109,2]
[353605042,1739957003908,-500.0,0.00014109,2]
[353605043,1739957003940,-500.0,0.00014109,2]
[353605044,1739957003971,-500.0,0.00014109,2]
[353605045,1739957004003,-2880.46,0.00014109,2]
[353605046,1739957004035,-500.0,0.00014109,2]
[353605047,1739957004068,-500.0,0.00014109,2]
[353605048,1739957004100,-500.0,0.00014109,2]
[353605049,1739957004131,-708.89,0.00014109,2]
[353605050,1739957004161,-1303.36,0.00014109,2]
[353605051,1739957004192,-500.0,0.00014109,2]
[353605052,1739957004221,-500.0,0.00014109,2]
[353605053,1739957004252,-500.0,0.00014109,2]
[353605054,1739957004282,-626.2,0.00014109,2]
[353605055,1739957004312,-500.0,0.00014109,2]
[353605056,1739957004344,-500.0,0.00014109,2]
[353605057,1739957004373,-500.0,0.00014109,2]
[353605058,1739957004402,-691.7,0.00014109,2]
[353605059,1739957004431,-500.0,0.00014109,2]
[353605060,1739957004460,-500.0,0.00014109,2]
[353605061,1739957004488,-500.0,0.00014109,2]
[353605062,1739957004518,-598.12,0.00014109,2]
[353605063,1739957004548,-500.0,0.00014109,2]
[353605064,1739957004577,-500.0,0.00014109,2]
[353605065,1739957004606,-500.0,0.00014109,2]
[353605066,1739957004634,-1590.92,0.00014109,2]
[353605067,1739957004663,-500.0,0.00014109,2]
[353605068,1739957004692,-500.0,0.00014109,2]
[353605069,1739957004722,-629.55,0.00014109,2]
[353605070,1739957004751,-500.0,0.00014109,2]
[353605071,1739957004782,-500.0,0.00014109,2]
[353605072,1739957004811,-956.27,0.00014109,2]
[353605073,1739957004842,-500.0,0.00014109,2]
[353605074,1739957004872,-500.0,0.00014109,2]
[353605075,1739957004902,-500.89,0.00014109,2]
[353605076,1739957004931,-848.21,0.00014109,2]
[353605077,1739957004962,-500.0,0.00014109,2]
[353605078,1739957004991,-500.0,0.00014109,2]
[353605079,1739957005022,-998.89,0.00014109,2]
[353605080,1739957005052,-500.0,0.00014109,2]
[353605081,1739957005302,-500.0,0.00014109,2]
[353605082,1739957005334,-782.0,0.00014109,2]
[353605083,1739957005366,-500.0,0.00014109,2]
[353605084,1739957005397,-500.0,0.00014109,2]
[353605085,1739957005429,-840.54,0.00014109,2]
[353605086,1739957005460,-500.0,0.00014109,2]
[353605087,1739957005489,-500.0,0.00014109,2]
[353605088,1739957005519,-632.82,0.00014109,2]
[353605089,1739957005548,-1192.42,0.00014109,2]
[353605090,1739957005576,-500.0,0.00014109,2]
[353605091,1739957005606,-500.0,0.00014109,2]
[353605092,1739957005635,-657.73,0.00014109,2]
[353605093,1739957005665,-500.0,0.00014109,2]
[353605094,1739957005695,-1447.73,0.00014109,2]
[353605095,1739957005725,-500.0,0.00014109,2]
[353605096,1739957005755,-825.98,0.00014109,2]
[353605097,1739957005784,-500.0,0.00014109,2]
[353605098,1739957005814,-500.0,0.00014109,2]
[353605099,1739957005848,-719.81,0.00014109,2]
[353605100,1739957005878,-500.0,0.00014109,2]
[353605101,1739957005910,-500.0,0.00014109,2]
[353605102,1739957005942,-1285.19,0.00014109,2]
[353605103,1739957005973,-500.0,0.00014109,2]
[353605104,1739957006003,-500.0,0.00014109,2]
[353605105,1739957006032,-500.0,0.00014109,2]
[353605106,1739957006061,-2760.81,0.00014109,2]
[353605107,1739957006090,-500.0,0.00014109,2]
[353605108,1739957006121,-1429.12,0.00014109,2]
[353605109,1739957006150,-535.98,0.00014109,2]
[353605110,1739957006182,-1108.97,0.00014109,2]
[353605111,1739957006210,-560.79,0.00014109,2]
[353605112,1739957006239,-1725.34,0.00014109,2]
[353605113,1739957006267,-500.0,0.00014109,2]
[353605114,1739957006295,-583.25,0.00014109,2]
[353605115,1739957006324,-500.0,0.00014109,2]
[353605116,1739957006352,-783.42,0.00014109,2]
[353605117,1739957006381,-500.0,0.00014109,2]
[353605118,1739957006410,-778.14,0.00014109,2]
[353605119,1739957006438,-500.0,0.00014109,2]
[353605120,1739957006467,-1078.1,0.00014109,2]
[353605121,1739957006495,-500.0,0.00014109,2]
[353605122,1739957006523,-2405.75,0.00014109,2]
[353605123,1739957006551,-5296.1,0.00014109,2]
[353605124,1739957006579,-2043.27,0.00014109,2]
[353605125,1739957006607,-1534.33,0.00014109,2]
[353605126,1739957006635,-500.0,0.00014109,2]
[353605127,1739957006663,-647.07,0.00014109,2]
[353605128,1739957006690,-482.01107199,0.00014109,2]
[353605129,1739957006717,-500.0,0.00014109,2]
[353605130,1739957006744,-500.0,0.00014109,2]
[353605131,1739957006772,-500.0,0.00014109,2]
[353605132,1739957006801,-1051.18,0.00014109,2]
[353605133,1739957006829,-738.28,0.00014109,2]
[353605134,1739957006861,-500.0,0.00014109,2]
[353605135,1739957006892,-1295.32,0.00014109,2]
[353605136,1739957006922,-1093.24,0.00014109,2]
[353605137,1739957006952,-500.0,0.00014109,2]
[353605138,1739957006981,-2278.72,0.00014109,2]
[353605139,1739957007009,-500.0,0.00014109,2]
[353605140,1739957007037,-1455.08,0.00014109,2]
[353605141,1739957007066,-500.0,0.00014109,2]
[353605142,1739957007095,-500.0,0.00014109,2]
[353605143,1739957007123,-572.16,0.00014109,2]
[353605144,1739957007153,-929.06,0.00014109,2]
[353605145,1739957007184,-1119.05,0.00014109,2]
[353605146,1739957007213,-967.27,0.00014109,2]
[353605147,1739957007242,-500.0,0.00014109,2]
[353605148,1739957007270,-500.0,0.00014109,2]
[353605149,1739957007300,-500.0,0.00014109,2]
[353605150,1739957007331,-500.0,0.00014109,2]
[353605151,1739957007365,-770.13,0.00014109,2]
[353605152,1739957007393,-500.0,0.00014109,2]
[353605153,1739957007423,-4255.25,0.00014109,2]
[353605154,1739957007452,-500.0,0.00014109,2]
[353605155,1739957007482,-571.24259119,0.00014109,2]
[353605156,1739957007514,-1120.64,0.00014109,2]
[353605157,1739957007544,-500.0,0.00014109,2]
[353605158,1739957007575,-500.0,0.00014109,2]
[353605159,1739957007605,-1021.92,0.00014109,2]
[353605160,1739957007635,-680.04,0.00014109,2]
[353605161,1739957007665,-500.0,0.00014109,2]
[353605162,1739957007695,-665.455708,0.00014109,2]
[353605163,1739957007725,-500.0,0.00014109,2]
[353605164,1739957007753,-665.455708,0.00014109,2]
[353605165,1739957007782,-500.0,0.00014109,2]
[353605166,1739957007811,-1015.43,0.00014109,2]
[353605167,1739957007843,-665.455708,0.00014109,2]
[353605168,1739957007872,-665.455708,0.00014109,2]
[353605169,1739957007903,-500.0,0.00014109,2]
[353605170,1739957007933,-500.0,0.00014109,2]
[353605171,1739957007963,-500.0,0.00014109,2]
[353605172,1739957007992,-500.0,0.00014109,2]
[353605173,1739957008020,-500.0,0.00014109,2]
[353605174,1739957008049,-909.24,0.00014109,2]
[353605175,1739957008077,-500.0,0.00014109,2]
[353605176,1739957008105,-476.92,0.00014109,2]
[353605177,1739957008133,-500.0,0.00014109,2]
[353605178,1739957008163,-500.0,0.00014109,2]